Workbook

Sheet 部门预算收支总表
A1: 部门预算收支总表 | B1: ="" ->  | C1: ="" ->  | D1: ="" ->  | E1: ="" -> 
A2: 部门编码及名称：河北唐山南堡经济开发区城市建设管理局 | B2: 预算年度：2017 | C2: ="" ->  | D2: 预算年度：2021 | E2: 金额单位：万元
A3: 序号 | B3: 收入 | C3: 资金来源 | D3: 支出 | E3: ="" -> 
A4: 栏次 | B4: 项 目 | C4: 预算数 | D4: 项 目 | E4: 预算数
A5: 栏次 | B5: 1 | C5: 2 | D5: 3 | E5: 4
A6: 1 | B6: 一、财政拨款收入 | C6: 7223.38 | D6: 一、一般公共服务支出
A7: 2 | B7: 二、上级拨款收入 | C7: 0 | D7: 二、外交支出 | E7: 0
A8: 3 | B8: 三、事业收入 | C8: 0 | D8: 三、国防支出 | E8: 0
A9: 4 | B9: 其中：财政专户收入 | C9: 0 | D9: 四、公共安全支出
A10: 5 | B10: 四、经营收入 | C10: 0 | D10: 五、教育支出 | E10: 0
A11: 6 | B11: 五、附属单位上缴收入 | C11: 0 | D11: 六、科学技术支出 | E11: 0
A12: 7 | B12: 六、其他收入 | C12: 0 | D12: 七、文化旅游体育与传媒支出 | E12: 0
A13: 8 | D13: 八、社会保障和就业支出 | E13: 42.78
A14: 9 | D14: 九、卫生健康支出 | E14: 44.5
A15: 10 | D15: 十、节能环保支出 | E15: 50
A16: 11 | D16: 十一、城乡社区支出 | E16: 6891.45
A17: 12 | D17: 十二、农林水支出 | E17: 161
A18: 13 | D18: 十三、交通运输支出 | E18: 0
A19: 14 | D19: 十四、资源勘探信息等支出 | E19: 0
A20: 15 | D20: 十五、商业服务业等支出 | E20: 0
A21: 16 | D21: 十六、金融支出 | E21: 0
A22: 17 | D22: 十七、援助其他地区支出 | E22: 0
A23: 18 | D23: 十八、国土海洋气候等支出 | E23: 0
A24: 19 | D24: 十九、住房保障支出 | E24: 32.65
A25: 20 | D25: 二十、粮油物资储备支出 | E25: 0
A26: 21 | D26: 二十一、灾害防治及应急管理支出 | E26: 1
A27: 22 | D27: 二十二、国债还本付息支出 | E27: 0
A28: 23 | D28: 二十三、其他支出 | E28: 0
A29: 24 | B29: 本年收入合计 | C29: =C6+C7+C8+C10+C11+C12 -> 7223.38 | D29: 本年支出合计 | E29: =SUM(E7:E28) -> 7223.38
A30: 25 | B30: 用事业基金弥补收支差额 | C30: 0 | D30: 结余分配 | E30: 0
A31: 26 | B31: 年初结转和结余 | C31: 0 | D31: 年末结转和结余 | E31: 0
A32: 27 | B32: 合计 | C32: =C29 -> 7223.38 | D32: 合计 | E32: =E29 -> 7223.38

Sheet 部门预算收入总表
A1: 部门预算收入总表 | B1: ="" -> 
A2: 部门编码及名称：河北唐山南堡经济开发区城市建设管理局 | B2: ="" ->  | F2: 年度： | H2: 预算年度：2021 | I2: ="" ->  | J2: 金额单位：万元 | K2: ="" -> 
A3: 序号 | B3: 科目 | C3: ="" ->  | D3: 本年收入合计 | E3: 财政拨款收入 | F3: 上级补助收入 | G3: 事业收入 | H3: ="" ->  | I3: 经营收入 | J3: 附属单位上缴收入 | K3: 其他收入
A4: 栏次 | B4: 功能分类科目编码 | C4: 科目名称 | D4: ="" ->  | E4: 小计 | F4: 事业费限额 | G4: 小计 | H4: 其中：财政专户收入 | I4: ="" ->  | J4: ="" ->  | K4: 其他来源收入
A5: 栏次 | B5: 1 | C5: 2 | D5: 3 | E5: 4 | F5: 5 | G5: 6 | H5: 7 | I5: 8 | J5: 9 | K5: 10
A6: 1 | C6: 合计 | D6: =E6+F6+G6+I6+J6+K6 -> 7223.38 | E6: =SUM(E7:E18) -> 7223.38 | F6: 0 | G6: 0 | H6: 0 | I6: 0 | J6: 0 | K6: 0
A7: 2 | B7: 2080505 | C7: 机关事业单位基本养老保险缴费支出 | D7: =E7+F7+G7+I7+J7+K7 -> 42.78 | E7: 42.78
A8: 3 | B8: 2101101 | C8: 行政单位医疗 | D8: 44.5 | E8: 44.5 | F8: 0 | G8: 0 | H8: 0 | I8: 0 | J8: 0 | K8: 0
A9: 4 | B9: 2110302 | C9: 水体 | D9: 50 | E9: 50
A10: 5 | B10: 2120101 | C10: 行政运行 | D10: 523.28 | E10: 523.28 | F10: 0 | G10: 0 | H10: 0 | I10: 0 | J10: 0 | K10: 0
A11: 6 | B11: 2120303 | C11: 小城镇基础设施建设 | D11: 3919.17 | E11: 3919.17
A12: 7 | B12: 2120501 | C12: 城乡社区环境卫生 | D12: 1759 | E12: 1759 | F12: 0 | G12: 0 | H12: 0 | I12: 0 | J12: 0 | K12: 0
A13: 8 | B13: 2121301 | C13: 城市公共设施 | D13: 550 | E13: 550
A14: 9 | B14: 2129999 | C14: 其他城乡社区支出 | D14: 140 | E14: 140 | F14: 0 | G14: 0 | H14: 0 | I14: 0 | J14: 0 | K14: 0
A15: 10 | B15: 2130312 | C15: 水质监测 | D15: 86 | E15: 86
A16: 11 | B16: 2130314 | C16: 防汛 | D16: 75 | E16: 75
A17: 12 | B17: 2210201 | C17: 住房公积金 | D17: 32.65 | E17: 32.65 | F17: 0 | G17: 0 | H17: 0 | I17: 0 | J17: 0 | K17: 0
A18: 13 | B18: 2240201 | C18: 行政运行 | D18: 1 | E18: 1

Sheet 部门预算支出总表
A1: 部门预算支出总表 | B1: ="" -> 
A2: 部门编码及名称：河北唐山南堡经济开发区城市建设管理局 | B2: ="" ->  | E2: 年度： | F2: 预算年度：2021 | H2: 金额单位：万元 | I2: ="" -> 
A3: 序号 | B3: 科目 | C3: ="" ->  | D3: 本年支出合计 | E3: 基本支出 | F3: 项目支出 | G3: 上缴上级支出 | H3: 经营支出 | I3: 对附属单位补助支出
A4: 栏次 | B4: 功能分类科目编码 | C4: 科目名称 | D4: ="" ->  | E4: 事业费限额 | F4: 其他 | G4: ="" ->  | H4: ="" ->  | I4: 其他来源收入
A5: 栏次 | B5: 1 | C5: 2 | D5: 3 | E5: 4 | F5: 5 | G5: 6 | H5: 7 | I5: 8
A6: 1 | C6: 合计 | D6: =SUM(D7:D18) -> 7223.38 | E6: =SUM(E7:E18) -> 544.31 | F6: =SUM(F7:F18) -> 6679.07 | G6: 0 | H6: 0 | I6: 0
A7: 2 | B7: 2080505 | C7: 机关事业单位基本养老保险缴费支出 | D7: =E7+F7+G7+I7+J7+K7 -> 42.78 | E7: 42.78 | G7: 0 | H7: 0 | I7: 0
A8: 3 | B8: 2101101 | C8: 行政单位医疗 | D8: 44.5 | E8: 44.5 | H8: 0 | I8: 0
A9: 4 | B9: 2110302 | C9: 水体 | D9: 50 | F9: 50 | H9: 0 | I9: 0
A10: 5 | B10: 2120101 | C10: 行政运行 | D10: 523.28 | E10: 424.38 | F10: 98.9 | H10: 0 | I10: 0
A11: 6 | B11: 2120303 | C11: 小城镇基础设施建设 | D11: 3919.17 | F11: 3919.17 | G11: 0 | H11: 0 | I11: 0
A12: 7 | B12: 2120501 | C12: 城乡社区环境卫生 | D12: 1759 | F12: 1759 | G12: 0 | H12: 0 | I12: 0
A13: 8 | B13: 2121301 | C13: 城市公共设施 | D13: 550 | F13: 550 | G13: 0 | H13: 0 | I13: 0
A14: 9 | B14: 2129999 | C14: 其他城乡社区支出 | D14: 140 | F14: 140 | G14: 0 | H14: 0 | I14: 0
A15: 10 | B15: 2130312 | C15: 水质监测 | D15: 86 | F15: 86 | G15: 0 | H15: 0 | I15: 0
A16: 11 | B16: 2130314 | C16: 防汛 | D16: 75 | F16: 75 | G16: 0 | H16: 0 | I16: 0
A17: 12 | B17: 2210201 | C17: 住房公积金 | D17: 32.65 | E17: 32.65
A18: 13 | B18: 2240201 | C18: 行政运行 | D18: 1 | F18: 1

Sheet 部门预算财政拨款收支总表
A1: 部门预算财政拨款收支总表 | B1: ="" -> 
A2: 部门编码及名称：河北唐山南堡经济开发区城市建设管理局 | D2: ="" ->  | E2: 预算年度：2021 | G2: 金额单位：万元
D3: 支出
A4: 栏次 | B4: 项 目 | C4: 金额 | D4: 项 目 | E4: 合计 | F4: 一般公共预算财政拨款 | G4: 政府性基金预算财政拨款 | H4: 国有资本经营预算财政拨款
A5: 栏次 | B5: 1 | C5: 2 | D5: 3 | E5: 4 | F5: 5 | G5: 6 | H5: 7
A6: 1 | B6: 一、一般公共预算财政拨款 | C6: 6673.38 | D6: 一、一般公共服务支出 | E6: =F6+G6+H6 -> 0 | G6: 0 | H6: 0
A7: 2 | B7: 二、政府性基金预算财政拨款 | C7: 550 | D7: 二、外交支出 | E7: =F7+G7+H7 -> 0 | F7: 0 | G7: 0 | H7: 0
A8: 3 | B8: 三、国有资本经营预算财政拨款 | C8: 0 | D8: 三、国防支出 | E8: 0 | F8: 0 | G8: 0 | H8: 0
A9: 4 | D9: 四、公共安全支出 | E9: 0 | H9: 0
A10: 5 | D10: 五、教育支出 | E10: 0 | F10: 0 | H10: 0
A11: 6 | D11: 六、科学技术支出 | E11: 0 | F11: 0 | H11: 0
A12: 7 | D12: 七、文化体育与传媒支出 | E12: 0 | F12: 0 | H12: 0
A13: 8 | D13: 八、社会保障和就业支出 | E13: 42.78 | F13: 42.78 | H13: 0
A14: 9 | D14: 九、卫生健康支出 | E14: 44.5 | F14: 44.5 | H14: 0
A15: 10 | D15: 十、节能环保支出 | E15: 50 | F15: 50 | H15: 0
A16: 11 | D16: 十一、城乡社区支出 | E16: 6891.45 | F16: 6341.45 | G16: 550 | H16: 0
A17: 12 | D17: 十二、农林水支出 | E17: 161 | F17: 161 | H17: 0
A18: 13 | D18: 十三、交通运输支出 | E18: 0 | F18: 0 | G18: 0 | H18: 0
A19: 14 | D19: 十四、资源勘探信息等支出 | E19: 0 | F19: 0 | G19: 0 | H19: 0
A20: 15 | D20: 十五、商业服务业等支出 | E20: 0 | F20: 0 | G20: 0 | H20: 0
A21: 16 | D21: 十六、金融支出 | E21: 0 | F21: 0 | G21: 0 | H21: 0
A22: 17 | D22: 十七、援助其他地区支出 | E22: 0 | F22: 0 | G22: 0 | H22: 0
A23: 18 | D23: 十八、国土海洋气候等支出 | E23: 0 | F23: 0 | G23: 0 | H23: 0
A24: 19 | D24: 十九、住房保障支出 | E24: 32.65 | F24: 32.65 | H24: 0
A25: 20 | D25: 二十、粮油物资储备支出 | E25: 0 | F25: 0 | H25: 0
A26: 21 | D26: 二十一、灾害防治及应急管理支出 | E26: 1 | F26: 1
A27: 22 | D27: 二十一、国债还本付息支出 | E27: 0 | F27: 0 | H27: 0
A28: 23 | D28: 二十二、其他支出 | E28: 0 | F28: 0 | G28: 0 | H28: 0
A29: 24 | B29: 本年收入合计 | C29: =C6+C7+C8 -> 7223.38 | D29: 本年支出合计 | E29: 7223.38 | F29: =SUM(F6:F28) -> 6673.38 | G29: =SUM(G6:G28) -> 550 | H29: =SUM(H6:H28) -> 0
A30: 25 | B30: 年初财政拨款结转和结余 | D30: 年末结转和结余 | E30: 0 | G30: 0 | H30: 0
A31: 26 | B31: 合计 | C31: =C29+C30 -> 7223.38 | D31: 合计 | E31: 7223.38 | F31: =F29 -> 6673.38 | G31: =G29 -> 550 | H31: 0

Sheet 部门预算一般公共预算财政拨款支出表
A1: 部门预算一般公共预算财政拨款支出表 | B1: ="" ->  | C1: ="" ->  | D1: ="" ->  | E1: ="" ->  | F1: ="" -> 
A2: 部门编码及名称：河北唐山南堡经济开发区城市建设管理局 | B2: ="" ->  | C2: 预算年度：2017 | D2: ="" ->  | E2: 预算年度：2021 | F2: 金额单位：万元
A3: 序号 | B3: 科目 | C3: ="" ->  | D3: 合计 | E3: 基本支出 | F3: 项目支出
A4: 栏次 | B4: 功能分类科目编码 | C4: 科目名称 | D4: ="" ->  | E4: ="" ->  | F4: 其他来源收入
A5: 栏次 | B5: 1 | C5: 2 | D5: 3 | E5: 4 | F5: 5
A6: 1 | C6: 合计 | D6: =E6+F6 -> 7223.38 | E6: =SUM(E7:E18) -> 544.31 | F6: =SUM(F7:F18) -> 6679.07
A7: 2 | B7: 2080505 | C7: 机关事业单位基本养老保险缴费支出 | D7: =E7+F7+G7+I7+J7+K7 -> 42.78 | E7: 42.78
A8: 3 | B8: 2101101 | C8: 行政单位医疗 | D8: 44.5 | E8: 44.5
A9: 4 | B9: 2110302 | C9: 水体 | D9: 50 | F9: 50
A10: 5 | B10: 2120101 | C10: 行政运行 | D10: 523.28 | E10: 424.38 | F10: 98.9
A11: 6 | B11: 2120303 | C11: 小城镇基础设施建设 | D11: 3919.17 | F11: 3919.17
A12: 7 | B12: 2120501 | C12: 城乡社区环境卫生 | D12: 1759 | F12: 1759
A13: 8 | B13: 2121301 | C13: 城市公共设施 | D13: 550 | F13: 550
A14: 9 | B14: 2129999 | C14: 其他城乡社区支出 | D14: 140 | F14: 140
A15: 10 | B15: 2130312 | C15: 水质监测 | D15: 86 | F15: 86
A16: 11 | B16: 2130314 | C16: 防汛 | D16: 75 | F16: 75
A17: 12 | B17: 2210201 | C17: 住房公积金 | D17: 32.65 | E17: 32.65
A18: 13 | B18: 2240201 | C18: 行政运行 | D18: 1 | F18: 1

Sheet 部门预算一般公共预算财政拨款基本支出表
A1: 部门预算一般公共预算财政拨款基本支出表 | B1: ="" ->  | C1: ="" ->  | D1: ="" ->  | E1: ="" ->  | F1: ="" -> 
A2: 部门编码及名称：河北唐山南堡经济开发区城市建设管理局 | B2: ="" ->  | C2: 预算年度：2017 | D2: ="" ->  | E2: 预算年度：2021 | F2: 金额单位：万元
A3: 序号 | B3: 科目 | C3: ="" ->  | D3: 基本支出 | E3: 基本支出 | F3: 项目支出
A4: 栏次 | B4: 经济分类科目编码 | C4: 科目名称 | D4: 合计 | E4: 人员经费 | F4: 公用经费
A5: 栏次 | B5: 1 | C5: 2 | D5: 3 | E5: 4 | F5: 5
A6: 1 | C6: 合计 | D6: =E6+F6 -> 544.31 | E6: =E7+E16+E37+E41 -> 517.8 | F6: =F7+F16+F37+F41 -> 26.51
A7: 2 | B7: 301 | C7: 工资福利支出 | D7: =E7+F7 -> 484.99 | E7: =SUM(E8:E15) -> 484.99 | F7: =SUM(F8:F15) -> 0
A8: 3 | B8: 30101 | C8: 基本工资 | D8: 126.54 | E8: 126.54
A9: 4 | B9: 30102 | C9: 津贴补贴 | D9: 34.14 | E9: 34.14
A10: 5 | B10: 30103 | C10: 奖金 | D10: 0.35 | E10: 0.35
A11: 6 | B11: 30108 | C11: 基本养老保险费 | D11: 42.78 | E11: 42.78
A12: 7 | B12: 30110 | C12: 基本医疗保险费 | D12: 44.5 | E12: 44.5
A13: 8 | B13: 30112 | C13: 其他社保缴费 | D13: 3.14 | E13: 3.14
A14: 9 | B14: 30107 | C14: 绩效工资 | D14: 146.06 | E14: 146.06
A15: 10 | B15: 30199 | C15: 其他工资福利支出 | D15: 87.48 | E15: 87.48
A16: 11 | B16: 302 | C16: 商品和服务支出 | D16: 24.51 | F16: =SUM(F17:F36) -> 24.51
A17: 12 | B17: 30201 | C17: 办公费 | D17: 2.56 | F17: 2.56
A18: 13 | B18: 30202 | C18: 印刷费 | D18: 1 | F18: 1
A19: 14 | B19: 30205 | C19: 水费 | D19: 0 | F19: 0
A20: 15 | B20: 30206 | C20: 电费 | D20: 0
A21: 16 | B21: 30207 | C21: 邮电费 | D21: 7.87 | F21: 7.87
A22: 17 | B22: 30208 | C22: 取暖费 | D22: 0
A23: 18 | B23: 30209 | C23: 物业管理费 | D23: 0
A24: 19 | B24: 30211 | C24: 差旅费 | D24: 4.5 | F24: 4.5
A25: 20 | B25: 30212 | C25: 因公出国（境）费用 | D25: 0
A26: 21 | B26: 30213 | C26: 维修(护)费 | D26: 1 | F26: 1
A27: 22 | B27: 30215 | C27: 会议费 | D27: 0
A28: 23 | B28: 30216 | C28: 培训费 | D28: 0
A29: 24 | B29: 30217 | C29: 公务接待费 | D29: 0
A30: 25 | B30: 30225 | C30: 专用燃料费 | D30: 0
A31: 26 | B31: 30226 | C31: 劳务费 | D31: 3.6 | F31: 3.6
A32: 27 | B32: 30228 | C32: 工会经费 | D32: 0 | F32: 0
A33: 28 | B33: 30229 | C33: 福利费 | D33: 0 | F33: 0
A34: 29 | B34: 30231 | C34: 公务用车运行维护费 | D34: 0 | F34: 0
A35: 30 | B35: 30239 | C35: 公务交通补贴 | D35: 0.48 | F35: 0.48
A36: 31 | B36: 30299 | C36: 其他商品和服务支出 | D36: 3.5 | F36: 3.5
A37: 32 | B37: 303 | C37: 对个人和家庭的补助 | D37: 32.81 | E37: =SUM(E38:E39) -> 32.81
A38: 33 | B38: 30309 | C38: 奖励金 | D38: 0.16 | E38: 0.16
A39: 34 | B39: 30313 | C39: 住房公积金 | D39: 32.65 | E39: 32.65
A40: 35 | B40: 30102 | C40: 采暖补贴 | D40: 0
A41: 36 | B41: 310 | C41: 其他资本性支出 | D41: 2 | F41: =SUM(F42) -> 2
A42: 37 | B42: 31002 | C42: 办公设备购置 | D42: 2 | F42: 2

Sheet 部门预算政府基金预算财政拨款支出表
A1: 部门预算政府基金预算财政拨款支出表 | B1: ="" ->  | C1: ="" ->  | D1: ="" ->  | E1: ="" ->  | F1: ="" -> 
A2: 部门编码及名称：河北唐山南堡经济开发区城市建设管理局 | B2: ="" ->  | C2: 预算年度：2017 | D2: ="" ->  | E2: 预算年度：2021 | F2: 金额单位：万元
A3: 序号 | B3: 科目 | C3: ="" ->  | D3: 合计 | E3: 基本支出 | F3: 项目支出
A4: 栏次 | B4: 功能分类科目编码 | C4: 科目名称 | D4: ="" ->  | E4: ="" ->  | F4: 其他来源收入
A5: 栏次 | B5: 1 | C5: 2 | D5: 3 | E5: 4 | F5: 5
A6: 1 | B6: 2121301 | C6: 城市公共设施 | D6: 550 | F6: 550
C7: 合计 | D7: =SUM(D6:D6) -> 550 | E7: 0 | F7: =SUM(F6:F6) -> 550

Sheet 部门预算国有资本经营预算财政拨款支出表
A1: 部门预算国有资本经营预算财政拨款支出表
A2: 部门编码及名称：河北唐山南堡经济开发区城市建设管理局 | C2: 预算年度：2017 | E2: 预算年度：2021 | F2: 金额单位：万元
A3: 序号 | B3: 科目 | D3: 合计 | E3: 基本支出 | F3: 项目支出
A4: 栏次 | B4: 功能分类科目编码 | C4: 科目名称 | F4: 其他来源收入
A5: 栏次 | B5: 1 | C5: 2 | D5: 3 | E5: 4 | F5: 5
A15: 注：无国有资本经营预算，空表列示。

Sheet 部门预算财政拨款“三公”经费支出表
A1: 部门预算财政拨款“三公”经费支出表 | B1: ="" ->  | C1: ="" ->  | D1: ="" ->  | E1: ="" ->  | F1: ="" -> 
A2: 部门编码及名称：河北唐山南堡经济开发区城市建设管理局 | B2: ="" ->  | C2: 预算年度：2017 | D2: ="" ->  | E2: 预算年度：2021 | F2: 金额单位：万元
A3: 序号 | B3: 项 目 | C3: 资金来源 | D3: ="" ->  | E3: ="" ->  | F3: ="" -> 
A4: 栏次 | B4: ="" ->  | C4: 合计 | D4: 一般公共预算财政拨款 | E4: 政府性基金财政拨款 | F4: 国有资本经营预算财政拨款
A5: 栏次 | B5: 1 | C5: 2 | D5: 3 | E5: 4 | F5: 5
A6: 1 | B6: 合计 | E6: 0 | F6: 0
A7: 2 | B7: 一、因公出国（境）费 | E7: 0 | F7: 0
A8: 3 | B8: 二、公务用车购置及运维费 | E8: 0 | F8: 0
A9: 4 | B9: 其中：公务用车购置费 | E9: 0 | F9: 0
A10: 5 | B10: 公务用车运行费 | E10: 0 | F10: 0
A11: 6 | B11: 三、公务接待费 | E11: 0 | F11: 0
A13: 注：无“三公”经费预算，空表列示。

Sheet Sheet1

Sheet Sheet2
